Cogmind - Beta 15 @@@ ROGUE MODE // 2025.08.15 @ 19:01:16 Player: shapeshifter Result: Self-destructed Performance ------------- Evolutions (2) 1000 Regions Visited (3) 600 Robots Destroyed (67) 335 Value Destroyed (1541) 1541 Prototype IDs (3) 60 Alien Tech Used (0) 0 Bonus (28) 28 TOTAL SCORE: 3564 Bonus ------- High Alert Combat Kills 28 Cogmind --------- Core Integrity 3/550 Matter 18/300 Energy 100/100 System Corruption 0% Temperature Cool (0) Movement Flying (40) Location -8/Materials Parts ------- > --- POWER (1) -------- (None) > --- PROPULSION (4) --- Flight Unit > --- UTILITY (4) ------ Improved Signal Interpreter > --- WEAPON (2) ------- (None) > --- INVENTORY (5) ---- Advanced Treads Machine Analyzer Improved Datajack Plasma Cutter Plasma Cutter Peak State ------------ > --- POWER ------------ Heavy Ion Engine > --- PROPULSION ------- Carbon-fiber Leg Carbon-fiber Leg Carbon-fiber Leg Compact Wheel > --- UTILITY ---------- Large Storage Unit Improved Sensor Array Improved Signal Interpreter Hardened Medium Armor Plating > --- WEAPON ----------- Improved Assault Rifle Improved Assault Rifle > --- INVENTORY -------- Compact Wheel High-capacity Matter Pod Machine Analyzer Improved Sensor Array Medium Armor Plating Flak Cannon Flak Cannon Flak Cannon Grenade Launcher Improved Datajack Plasma Cutter Plasma Cutter Plasma Cutter Plasma Cutter Flail [Rating: 32] Favorites ----------- Power Improved Ion Engine Engine Improved Ion Engine Propulsion Armored Wheel Treads Light Treads Leg Carbon-fiber Leg Wheel Armored Wheel Hover Unit Airjet Flight Unit Flight Unit Utility Large Storage Unit Device Improved Sensor Array Storage Large Storage Unit Processor Improved Signal Interpreter Protection Medium Armor Plating Weapon Assault Rifle Energy Gun EM Pulse Gun Ballistic Gun Assault Rifle Ballistic Cannon Light Cannon Launcher Grenade Launcher Impact Weapon Flail Build | -11 -10 -9 -8 ------- Run | Yrd Mat Mat Mat Slots Evolved 4 | . . 2 2 Power . | . . . . Propulsion 2 | . . 1 1 Utility 2 | . . 1 1 Weapon . | . . . . Parts Attached 54 | 7 5 26 16 Power 5 | 1 1 3 . Engine 5 | 1 1 3 . Core . | . . . . Reactor . | . . . . Propulsion 16 | 2 . 6 8 Treads 2 | 2 . . . Leg 4 | . . . 4 Wheel 6 | . . 6 . Hover 1 | . . . 1 Flight 3 | . . . 3 Utility 15 | 2 2 6 5 Device 5 | 1 1 1 2 Storage 3 | 1 1 1 . Processor 2 | . . 1 1 Hackware . | . . . . Protection 5 | . . 3 2 Artifact . | . . . . Weapon 18 | 2 2 11 3 Energy Gun 5 | 2 . 3 . Energy Cannon . | . . . . Ballistic Gun 8 | . 1 7 . Ballistic Cannon 3 | . 1 . 2 Launcher 1 | . . . 1 Special Weapon . | . . . . Impact Weapon 1 | . . 1 . Slashing Weapon . | . . . . Piercing Weapon . | . . . . Special Melee Weapon . | . . . . Unidentified Prototypes 3 | . . 3 . Parts Lost 30 | . 4 8 18 Power 4 | . 1 2 1 Propulsion 11 | . . 2 9 Utility 7 | . 1 2 4 Weapon 8 | . 2 2 4 Highest Loss Streak 14 | . 3 3 14 To Critical Strikes . | . . . . Average Backups 11 | 3 8 13 12 Power 1 | . 1 1 . Propulsion 1 | 1 2 1 . Utility 2 | . 1 3 3 Weapon 3 | . 2 5 3 Tool/Special . | . . . . Unused Backups 24 | . 4 8 12 Power 3 | . 2 . 1 Propulsion 3 | . 2 . 1 Utility 8 | . . 4 4 Weapon 5 | . . 4 1 Tool/Special 5 | . . . 5 Average Slot Usage (%) 88 | . 91 88 85 Engine 10 | . 12 10 7 Treads 7 | . 28 . . Leg 5 | . . . 20 Wheel 17 | . . 31 7 Device 6 | . 9 3 9 Storage 11 | . 14 11 8 Processor 4 | . . 4 9 Protection 3 | . . 4 5 Energy Gun 5 | . 15 3 . Ballistic Gun 11 | . 6 15 8 Ballistic Cannon 2 | . 3 1 3 Launcher 1 | . . . 4 Peak Build Rating 32 | 7 9 21 32 Average Rating 15 | 5 7 15 25 On Entrance 9 | . 7 9 21 Naked Turns . | . . . . Heaviest Build 43 | 13 32 41 43 Greatest Support 45 | 40 40 44 45 Greatest Overweight (x) 2 | . . 1 2 Average Overweight (x) . | . . . . Largest Inventory Capacity 15 | 8 15 15 15 Average Capacity 14 | 7 14 15 13 Most Carried 15 | 6 14 15 15 Average Carried 11 | 3 8 13 12 Final Capacity 15 | 8 15 15 5 Final Carried 15 | 4 10 15 5 Class Distribution -------------------- 100% | Mutant Dominant Class ---------------- Mutant | -10/Materials Mutant | -9/Materials Mutant | -8/Materials Resources | -11 -10 -9 -8 ----------- Run | Yrd Mat Mat Mat Matter Collected 1425 | 225 103 766 331 Remotely . | . . . . Salvage Created 2120 | 135 368 1359 258 Parts 143 | 8 26 92 17 Haulers Intercepted 4 | . . 4 . Recyclers Shooed 2 | . 1 1 . Parts Field Recycled . | . . . . Retrieved Matter . | . . . . Parts Self-Destructed . | . . . . Prevented . | . . . . Kills | -11 -10 -9 -8 ------- Run | Yrd Mat Mat Mat Combat Hostiles Destroyed 48 | . 9 27 12 Melee 1 | . . . 1 Guns 33 | . 7 24 2 Cannons 12 | . 1 3 8 AOE 2 | . 1 . 1 Classes Destroyed 12 | 2 5 4 1 Worker 1 | . . 1 . Builder 1 | . 1 . . Tunneler 3 | 2 . 1 . Hauler 4 | . . 4 . Recycler 3 | 1 . 2 . Operator 2 | . 1 1 . Watcher 5 | . 2 3 . Swarmer 20 | . 3 11 6 Grunt 15 | . 6 7 2 Duelist 1 | . . 1 . Sentry 11 | . . 8 3 Hunter 1 | . . . 1 Best Kill Streak 8 | 2 5 6 8 Combat Bots Only 8 | . 4 6 8 Max Kills in Single Turn 2 | 2 2 2 2 Gunslinging . | . . . . Exploded 1 | . 1 . 1 Melee 1 | . . . 1 Uniques/NPCs Destroyed . | . . . . Combat | -11 -10 -9 -8 -------- Run | Yrd Mat Mat Mat Hostile Shots Fired 501 | . 49 189 263 Missed 151 | . 19 56 76 Hits 350 | . 30 133 187 Melee 6 | . . 6 . Projectile 344 | . 30 127 187 Critical Strikes 7 | . . 1 6 Damage Taken 4414 | 11 385 1627 2391 Core 778 | . 20 211 547 Absorbed by Shields . | . . . . Core Remaining (%) 79 | 100 92 47 . Volleys Fired 217 | 6 41 126 44 Largest 2 | 2 2 2 2 Hottest 86 | 80 80 86 74 Shots Fired 389 | 12 74 239 64 Gun 327 | 12 67 220 28 Cannon 59 | . 7 19 33 Launcher 3 | . . . 3 Special . | . . . . Kinetic 294 | . 31 202 61 Thermal 37 | . . 37 . Explosive 3 | . . . 3 Electromagnetic 55 | 12 43 . . Robot Hit Streak 18 | 7 10 18 10 Robot Miss Streak 10 | 2 3 7 10 Penetration Max . | . . . . Secondary Targets 2 | . 1 1 . Max Gunslinging Chain 1 | . 1 1 . Shots Hit Robots 246 | 8 46 142 50 Core Hits 131 | 3 21 59 48 Critical Kills . | . . . . Critical Parts Destroyed . | . . . . Critical Strikes 2 | . . 2 . Burn 2 | . . 2 . Melee Attacks . | . . . . Impact . | . . . . Slashing . | . . . . Piercing . | . . . . Sneak Attacks . | . . . . Combat Hostiles . | . . . . Follow-up Attacks . | . . . . Damage Inflicted 3892 | 150 660 2008 1074 Guns 2735 | 97 516 1795 327 Cannons 804 | . 73 210 521 Explosions 274 | 53 71 . 150 Melee . | . . . . Ramming 79 | . . 3 76 Kinetic 2732 | . 226 1658 848 Thermal 471 | 53 71 347 . Explosive 150 | . . . 150 Electromagnetic 460 | 97 363 . . Impact . | . . . . Slashing . | . . . . Piercing . | . . . . Highest Corruption 9 | . . 9 . Average Corruption 8 | . . 8 . Corruption Purged . | . . . . Corruption Blocked . | . . . . Effects 31 | . . 31 . Message Errors 9 | . . 9 . Matter Fused 6 | . . 6 . Heat Flow Errors 2 | . . 2 . Energy Discharges 4 | . . 4 . Parts Rejected 2 | . . 2 . Data Loss (minor) 1 | . . 1 . Data Loss (major) 2 | . . 2 . Misfires 1 | . . 1 . Weapon Failures 4 | . . 4 . Overload Shots . | . . . . Overflow Damage 6 | . 5 . 1 Projectiles 5 | . 5 . . Explosions 1 | . . . 1 Melee . | . . . . Knockbacks 16 | . 1 . 15 Impact . | . . . . Kinetic 16 | . 1 . 15 Secondary . | . . . . Self-Inflicted Damage 44 | 11 20 1 12 Shots 3 | 1 1 . 1 Rammed 3 | . . 1 2 Targets Rammed 19 | . . 1 18 Kicked 16 | . . . 16 Crushed . | . . . . Highest Temperature 229 | 48 126 229 42 Average Temperature 32 | 17 51 26 9 Received Heat Transfer 1449 | . 180 432 837 Siege Activations . | . . . . Martial Activations . | . . . . Shielding Activations . | . . . . Robots Disrupted . | . . . . Combat Hostiles . | . . . . Robots Corrupted . | . . . . Combat Hostiles . | . . . . Parts Fried 3 | . 3 . . Impact Corruptions . | . . . . Robots Melted . | . . . . Combat Hostiles . | . . . . Parts Melted 1 | 1 . . . Heat Transferred 1186 | 50 100 1036 . Parts Sabotaged . | . . . . Parts Stolen . | . . . . Parts Stripped . | . . . . Power Chain Reactions 2 | 1 1 . . Alert | -11 -10 -9 -8 ------- Run | Yrd Mat Mat Mat Maximum Alert Level 2 | . . 2 1 Low Security (%) 74 | 100 100 54 81 Level 1 14 | . . 23 18 Level 2 10 | . . 22 . Level 3 . | . . . . Level 4 . | . . . . Level 5 . | . . . . High Security . | . . . . Max Security . | . . . . Peak Influence 452 | 10 150 452 276 Initial 180 | . . 32 180 Average 143 | 1 62 199 158 Influence Increases 1654 | 15 310 885 444 Destroy 0b10 Robot/C 960 | . 180 540 240 Destroy 0b10 Robot/NC 95 | 15 20 60 . Destroy Leader 258 | . 44 144 70 Successful Hack 39 | . . 32 7 Disable Machine 45 | . 15 . 30 Destroy Structure 32 | . 6 4 22 Partial Spotted 15 | . . . 15 Lose Combat Pursuer 210 | . 45 105 60 Influence Decreases 1480 | 15 233 534 698 Entered New Map 293 | . . 45 248 Time Decay 897 | 15 193 419 270 Lost Part 290 | . 40 70 180 Squads Dispatched 9 | . 3 1 5 Investigation 2 | . . . 2 Extermination . | . . . . Reinforcement 7 | . 3 1 3 Assault . | . . . . Garrison . | . . . . Intercept . | . . . . Searches Triggered . | . . . . Construction Impeded 1 | . . . 1 Haulers Reinforced . | . . . . Active Scanning Responses . | . . . . Cargo Convoy Interrupts . | . . . . Stealth | -11 -10 -9 -8 --------- Run | Yrd Mat Mat Mat Distress Signals 7 | . 2 4 1 Communications Jammed . | . . . . Distress Signals . | . . . . Times Spotted 90 | . 17 45 28 Peak Tracking Total 10 | . 5 7 10 Tactical Retreats 8 | . 2 5 1 Traps | -11 -10 -9 -8 ------- Run | Yrd Mat Mat Mat Traps Triggered 4 | . . 4 . Indirectly . | . . . . Trap Hack Attempts . | . . . . Triggered . | . . . . Disarmed . | . . . . Reprogrammed . | . . . . Reused . | . . . . Traps Extracted . | . . . . Installed . | . . . . Triggered . | . . . . Machines | -11 -10 -9 -8 ---------- Run | Yrd Mat Mat Mat Machines Disabled 3 | . 1 . 2 Max in Single Turn 1 | . 1 . 1 Machines Repaired . | . . . . Machines Dismantled . | . . . . Machines Sabotaged . | . . . . Overloaded Fab Kills . | . . . . Hacking | -11 -10 -9 -8 --------- Run | Yrd Mat Mat Mat Machines Accessed 11 | . 1 5 5 Terminals 10 | . 1 5 4 Fabricators . | . . . . Repair Stations . | . . . . Recycling Units 1 | . . . 1 Scanalyzers . | . . . . Garrison Access . | . . . . Total Hacks 31 | . 2 20 9 Successful 13 | . . 9 4 Failed 17 | . 2 10 5 Catastrophic 2 | . 1 . 1 Database Lockouts 1 | . . 1 . Manual 24 | . . 15 9 Terminals 30 | . 2 20 8 Fabricators . | . . . . Repair Stations . | . . . . Recycling Units 1 | . . . 1 Scanalyzers . | . . . . Garrison Access . | . . . . Terminal Hacks 7 | . . 6 1 Part Schematic 3 | . . 3 . Branch Access Points 2 | . . 1 1 Hauler Manifests 1 | . . 1 . Registered Components 1 | . . 1 . Fabricator Hacks . | . . . . Repair Station Hacks . | . . . . Recycling Unit Hacks 1 | . . . 1 Report Inventory 1 | . . . 1 Scanalyzer . | . . . . Garrison Access Hacks . | . . . . Unauthorized Hacks 5 | . . 3 2 Terminals 5 | . . 3 2 Botnet 5 | . . 3 2 Fabricators . | . . . . Repair Stations . | . . . . Recycling Units . | . . . . Scanalyzers . | . . . . Garrison Access . | . . . . Data Cores Recovered 1 | . . 1 . Used . | . . . . Hacking Detections 9 | . 1 5 3 Full Trace Events 2 | . . . 2 Feedback Events . | . . . . Feedback Blocked . | . . . . Robot Schematics Acquired . | . . . . Robots Built . | . . . . Authchips . | . . . . Time . | . . . . Total Robot Build Rating . | . . . . Part Schematics Acquired 3 | . . 3 . Parts Built . | . . . . Authchips . | . . . . Time . | . . . . Total Part Build Rating . | . . . . Parts Repaired . | . . . . Time . | . . . . Parts Recycled . | . . . . Recycled Matter . | . . . . Retrieved Matter . | . . . . Retrieved Components . | . . . . Parts Scanalyzed . | . . . . Part Schematics Acquired . | . . . . Parts Damaged . | . . . . Bothacking | -11 -10 -9 -8 ------------ Run | Yrd Mat Mat Mat Used RIF Installer . | . . . . Robots Hacked . | . . . . Non-combat . | . . . . Combat . | . . . . Robot Hacks Applied . | . . . . Relay Couplers Released . | . . . . Fabnet Peak Effective % . | . . . . Robots Rewired . | . . . . Allies Hacked . | . . . . Hacks Repelled . | . . . . Allies | -11 -10 -9 -8 -------- Run | Yrd Mat Mat Mat Total Allies . | . . . . Largest Group . | . . . . Highest-Rated Group . | . . . . Highest-Rated Ally . | . . . . Total Orders . | . . . . Ally Attacks . | . . . . Total Damage . | . . . . Kills . | . . . . Allies Corrupted . | . . . . Allies Melted . | . . . . Intel | -11 -10 -9 -8 ------- Run | Yrd Mat Mat Mat Active Infowar (turns) 779 | 24 272 . 483 Sensors 483 | . . . 483 Seismic 296 | 24 272 . . Robot Analysis Total . | . . . . Derelict Logs Recovered . | . . . . Drone Launches . | . . . . Drone Recoveries . | . . . . Exploration | -11 -10 -9 -8 ------------- Run | Yrd Mat Mat Mat Turns Passed 2494 | 156 615 1130 593 Spaces Moved 1384 | 81 280 637 386 Core 13 | 11 . . 2 Treads 350 | 70 280 . . Legs 250 | . . . 250 Wheels 657 | . . 637 20 Hover 10 | . . . 10 Flight 104 | . . . 104 Fastest Speed 37 | 50 160 90 37 Average Speed 111 | 145 160 92 100 Slowest Speed 190 | 160 160 108 190 Overloaded Moves . | . . . . Propulsion Burnouts . | . . . . Robots Hopped 3 | . . . 3 Potential Cave-ins . | . . . . Cave-ins Triggered . | . . . . Exploration Rate (%) 38 | 6 52 66 31 Regions Visited 3 Branch Regions . Pre-discovered Areas . | . . . . Known Exits Taken . | . . . . Unknown Exits Taken 3 | 1 1 1 . Scrap Searched . | . . . . Spaces Dug . | . . . . Terrain Destroyed 32 | 6 6 . 20 Melee . | . . . . Projectile . | . . . . AOE 32 | 6 6 . 20 Terrain Rammed . | . . . . Walls Destroyed . | . . . . Machines Disabled . | . . . . Actions | -11 -10 -9 -8 --------- Run | Yrd Mat Mat Mat Total 1960 | 108 380 955 517 Wait 163 | 2 35 97 29 Move 1375 | 80 279 636 380 Hop 3 | . . . 3 Pick Up 76 | 12 15 37 12 Fast Attach 6 | . . 2 4 Attach 39 | 7 4 18 10 Detach . | . . . . Swap 23 | . 1 14 8 Drop 39 | 1 5 24 9 Fire 217 | 6 41 126 44 Melee . | . . . . Ram 3 | . . 1 2 Kick 16 | . . . 16 Crush . | . . . . Escape Stasis . | . . . . Rewire . | . . . . Trap . | . . . . Miscellaneous . | . . . . Route ------- -11/Scrapyard -10/Materials -9/Materials (discovered 3 exits: *Mat x2 / *Min) -8/Materials (discovered 2 exits: *Sto x2) History --------- Turn | Location | Event 17 | -11/Scrapyard | Discovered new exit (range 15) 157 | -11/Scrapyard | Entered Materials 318 | -10/Materials | Build established: Mutant 533 | -10/Materials | Lost 3 parts (1p2w) 707 | -10/Materials | Discovered new exit (range 4) 772 | -10/Materials | Entered another Materials area 772 | -9/Materials | Evolved 2 slots: Propulsion x1, Utility x1 1023 | -9/Materials | Discovered new exit (range 13) 1227 | -9/Materials | Discovered new exit (range 9) 1558 | -9/Materials | Identified exit to Mines 1663 | -9/Materials | Core integrity fell below 50% 1711 | -9/Materials | Lost 3 parts (1p1n1w) 1877 | -9/Materials | Central database locked down 1880 | -9/Materials | Discovered new exit (range 8) 1902 | -9/Materials | Entered another Materials area 1902 | -8/Materials | Evolved 2 slots: Propulsion x1, Utility x1 2327 | -8/Materials | Destroyed 8 combat bots 2331 | -8/Materials | Lost 3 parts (1n1u1w) 2408 | -8/Materials | Core integrity fell below 50% 2436 | -8/Materials | Core integrity fell below 20% 2463 | -8/Materials | Identified exit to Storage 2484 | -8/Materials | Lost 14 parts (1p7n3u3w) 2495 | -8/Materials | Self-destructed Last Messages --------------- 02439_ Acquired Imp. Datajack. 02441_ Dropped Hcp. Matter Pod. 02441_ Acquired Lrg. Storage Unit. 02442_ Slug penetrates K-01 Serf. 02445_ Slug penetrates G-47 Trooper. 02445_ Acquired 31 matter. 02447_ Acquired Flight Unit. 02452_ Slug penetrates Wall. 02452_ Flight Unit destroyed. 02453_ Wall collapses. 02453_ Flight Unit destroyed. 02463_ Connecting with Terminal... >>Access(Branch) Found 2 branch access points: (86,93) Storage (10,23) Storage Map updated. 02464_ Dropped Lrg. Storage Unit. 02464_ Acquired Adv. Treads. 02494_ Airjet destroyed. Map ----- +----------------------------------------------------+ | | | | | ???????????????????????????????????? | | ???????????????????????????????????? | | ???????????????????????????????????? | | ???????????????????????????????????? | | ???????????????????????????????????? | | ???????????????????????????????????? | | ???????????????????????????????????? | | ???????????????????????????????????? | | ???????????????????????????????????? | | ???????? ??????????????????????????? | | ???????? ?????????????????????????? | | ????????# ?????????????????????????? | | ????????# ?????????????????????????? | | ????????# ?????????????????????????? | | ????????+ ?????????????????????????? | | ????????# ????????????????????????? | | ????????# ????????????????????????? | | ????????# ????????????????????????? | | ????????# ????????????????????##??? | | ????????# ?????????????????? #??? | | ???????## ##?????????????? #??? | | ???????# ##+########?? #??? | | ???????# Y # !#??? | | ???????# >@ + #??? | | ???????# ##+###### # #??? | | ???????###### ????# #?? #??? | | ????????????# ????# #???? #??? | | ????????????# #???# ##+#???####??? | | ????????????# ##### #?????????? | | ????????????# + #?????????? | | ????????????# #####+## #?????????? | | ????????????# #??? # ########### | | ????????????#####???"" # | | ??????????????????? G" ############# | | ???????????????????""" #???????????? | | ?????????????????? #???????????? | | ?????????????????? / *#???????????? | | ?????????????????# #???????????? | | ?????????????????##?####???????????? | | ???????????????????????????????????? | | ???????????????????????????????????? | | ???????????????????????????????????? | | ???????????????????????????????????? | | ???????????????????????????????????? | | ???????????????????????????????????? | | ???????????????????????????????????? | | ?????????????????###########???????? | | ?????????????##?##[ #???????? | +----------------------------------------------------+ Best States ------------- Heat Dissipation 38 Energy Generation 14 Energy Capacity 280 Matter Stores 300 Matter Capacity 300 Sight Range 16 Robot Scan Range 15 Terrain Scan Density 10 Armor Coverage 225 Evasion (%) 62 Targeting Accuracy 6 Recoil Reduction 2 Item Schematics ----------------- Cargo Storage Unit | -9/Materials | Hacked Plasma Cutter | -9/Materials | Hacked Huge Storage Unit | -9/Materials | Hacked Robot Schematics ------------------ None Fabricated ------------ Nothing Repaired ---------- Nothing Alien Tech Used ----------------- None Achievements -------------- None Challenges ------------ None Game ------ Seed SignalMyomerBiocell Manual? 0 Play Time 00:22:36 Cumulative 146.3 hours Start 2025.08.15 @ 18:38:50 End 2025.08.15 @ 19:01:16 Sessions 1 Manual Loads 0 Difficulty Rogue Special Mode None Game No. 249 Rogue 249 Adventurer 0 Explorer 0 Win Type - Total 2 Types 1/0/1/0/0/0/0/0/0/0 Lore% 76 Gallery% 71 Achievement% 51 Wizard Run 0 Options --------- Layout 1 ASCII 0 Keyboard 0 Movement Mouse Keybinds 0 Fullscreen 1 Font 24/Smallcaps Map View 50x35 Zoom Use 0% Tactical HUD 1 Map Filters NONE Filters NONE Steam 1 RUN: 47b29155-c89a-4b9c-94d4-958f417d44c4